bitfinex-derivatives/quotes_ETHF0:USTF0_20241020
["timestamp","ask_amount","ask_price","bid_price","bid_amount"]
[1729409700441,3.2078,2649.6,2649.1,0.3775]
[1729409700745,0.37746,2649.4,2649.2,0.98856537]
[1729409700940,0.37746,2649.4,2649.2,1.41856537]
[1729409701349,0.37746,2649.4,2649.2,0.43]
[1729409714148,0.37746,2649.4,2649.2,0.80748]
[1729409714351,1.62755,2649.5,2649.2,0.80748]
[1729409714547,0.37746,2649.4,2649.2,0.80748]
[1729409717259,1.2501,2649.5,2649.2,0.43]
[1729409717558,1.62755,2649.5,2649.2,0.80748]
[1729409717757,1.2501,2649.5,2649.2,0.80748]
[1729409717957,0.37746,2649.4,2649.2,0.80748]
[1729409722860,1.62755,2649.5,2649.3,0.37747]
[1729409723059,0.8236,2649.5,2649.4,0.37746]
[1729409725565,1.20104,2649.5,2649.3,0.77606]
[1729409728057,1.20104,2649.5,2649.3,0.37746]
[1729409728258,0.37747,2649.3,2649.2,0.98856537]
[1729409728453,0.37747,2649.3,2649.0,1.4780322]
[1729409728454,0.3988,2649.4,2648.9,0.98856537]
[1729409728665,0.37751,2649.0,2648.9,0.98856537]
[1729409728863,2.18746,2649.4,2648.8,4.19636537]
[1729409729066,0.78603,2648.9,2648.8,4.19636537]
[1729409729261,0.78603,2648.9,2648.8,3.2078]
[1729409731859,0.78603,2648.9,2648.7,0.3995]
[1729409732066,0.3941,2648.8,2648.7,0.3995]
[1729409732674,0.3941,2648.8,2648.7,1.38806537]
[1729409733781,0.7965,2648.8,2648.7,1.38806537]
[1729409734157,0.7965,2648.8,2648.7,4.59586537]
[1729409734365,0.7965,2648.8,2648.7,1.38806537]
[1729409735361,0.7965,2648.8,2648.7,3.6073]
[1729409737173,0.7965,2648.8,2648.7,0.3995]
[1729409737574,0.7965,2648.8,2648.7,0.77706]
[1729409740376,0.7965,2648.8,2648.7,0.3995]
[1729409743689,1.17404,2648.8,2648.7,0.3995]
[1729409744182,0.7965,2648.8,2648.7,0.3995]
[1729409744684,0.3941,2648.8,2648.7,0.3995]
[1729409751086,0.77164,2648.8,2648.7,0.3995]
[1729409751585,1.18484,2648.8,2648.7,0.3995]
[1729409752980,0.8073,2648.8,2648.7,0.3995]
[1729409756996,0.3941,2648.8,2648.7,0.3995]
[1729409758393,0.78604,2648.9,2648.7,0.3995]
[1729409758394,0.4085,2648.9,2648.7,0.3995]
[1729409758594,0.4085,2648.9,2648.8,0.37754]
[1729409758799,0.4085,2648.9,2648.7,0.3995]
[1729409759001,0.78603,2648.9,2648.7,0.77705]
[1729409759494,0.4221,2649.2,2648.7,0.77705]
[1729409759495,0.37751,2649.1,2648.8,0.37754]
[1729409759802,0.37751,2649.1,2648.9,0.37753]
[1729409760303,0.37751,2649.1,2649.0,0.3925]
[1729409785247,0.37751,2649.0,2648.9,0.98856537]
[1729409785458,0.78151,2649.0,2648.9,1.40836537]
[1729409795337,0.78151,2649.0,2648.9,0.98856537]
[1729409795633,0.37753,2648.9,2648.8,0.98856537]
[1729409795934,1.22613,2648.9,2648.8,2.48120647]
[1729409798834,1.22613,2648.9,2648.8,0.98856537]
[1729409799344,1.22613,2648.9,2648.8,2.48125961]
[1729409800037,1.22613,2648.9,2648.8,0.98856537]
[1729409805650,1.22613,2648.9,2648.8,2.48126811]
[1729409805841,1.22613,2648.9,2648.8,0.98856537]
[1729409806343,1.22613,2648.9,2648.8,2.48125461]
[1729409806536,1.22613,2648.9,2648.8,2.48124638]
[1729409807141,1.22613,2648.9,2648.8,1.49268101]
[1729409807539,1.22613,2648.9,2648.8,0.99002936]
[1729409807931,0.8486,2648.9,2648.7,4.61002936]
[1729409808130,0.37754,2648.8,2648.7,4.61002936]
[1729409808343,0.37754,2648.8,2648.7,6.10284208]
[1729409808743,0.37754,2648.8,2648.7,4.61002936]
[1729409809247,0.37754,2648.8,2648.7,1.40222936]
[1729409809639,0.37754,2648.8,2648.7,2.8948741]
[1729409809839,0.37754,2648.8,2648.7,3.38287694]
[1729409810336,0.37754,2648.8,2648.7,1.90477863]
[1729409812356,0.80394,2648.9,2648.7,1.90477863]
[1729409812554,0.80393,2648.9,2648.8,0.98990016]
[1729409815251,0.80393,2648.9,2648.7,1.8902322]
[1729409815252,0.37754,2648.8,2648.7,1.40210016]
[1729409815454,0.37754,2648.8,2648.7,2.89453478]
[1729409817454,0.37754,2648.8,2648.7,1.90463462]
[1729409817845,0.37754,2648.8,2648.7,2.89450073]
[1729409818156,0.37754,2648.8,2648.7,1.90463462]
[1729409818457,0.37754,2648.8,2648.7,2.89450521]
[1729409821547,0.37754,2648.8,2648.7,1.40207059]
[1729409829168,0.37754,2648.8,2648.7,2.89461319]
[1729409829366,0.37754,2648.8,2648.7,1.40207059]
[1729409831766,0.4264,2648.9,2648.7,1.40207059]
[1729409832065,0.80394,2648.9,2648.7,1.40207059]
[1729409832858,0.80394,2648.9,2648.7,1.77963059]
[1729409834064,0.80394,2648.9,2648.8,0.98987059]
[1729409840979,0.37756,2648.7,2648.6,0.98987059]
[1729409841182,0.37757,2648.6,2648.5,0.98987059]
[1729409841482,0.4043,2648.8,2648.4,1.37747059]
[1729409841677,0.4264,2648.9,2648.4,0.98987059]
[1729409841678,1.19139,2648.5,2648.4,0.98987059]
[1729409842283,1.19139,2648.5,2648.3,4.58527059]
[1729409842484,0.418,2648.4,2648.3,4.58527059]
[1729409843794,0.418,2648.4,2648.3,1.37747059]
[1729409844496,0.418,2648.4,2648.3,0.3876]
[1729409845094,0.7956,2648.4,2648.3,0.3876]
[1729409848789,0.7956,2648.4,2648.2,3.2078]
[1729409848790,0.418,2648.4,2648.2,3.2078]
[1729409849085,0.37761,2648.3,2648.2,3.2078]
[1729409868304,0.37763,2648.2,2648.1,0.4073]
[1729409868504,1.22663,2648.2,2648.1,0.4073]
[1729409874019,0.37767,2647.9,2647.7,3.602]
[1729409874318,0.37767,2647.9,2647.8,0.3883]
[1729409874822,0.37767,2648.0,2647.8,0.3883]
[1729409878433,0.37766,2648.0,2647.8,0.3883]
[1729409881428,0.3955,2648.1,2647.8,0.3883]
[1729409881832,0.37767,2648.0,2647.8,0.3883]
[1729409883222,0.4195,2648.2,2647.9,3.2078]
[1729409883425,0.4195,2648.2,2647.9,3.58547]
[1729409883426,0.79714,2648.2,2647.9,3.58547]
[1729409886827,0.79714,2648.2,2647.9,0.37767]
[1729409889141,0.79714,2648.2,2648.0,0.8009]
[1729409889638,0.79714,2648.2,2648.1,0.4188]
[1729409891232,0.37764,2648.2,2648.1,0.4188]
[1729409929370,0.3907,2648.4,2648.1,1.40867059]
[1729409929565,0.7683,2648.4,2648.2,0.98987059]
[1729409931768,0.37761,2648.3,2648.2,0.98987059]
[1729409934169,0.37761,2648.3,2648.1,1.40867059]
[1729409934473,0.37761,2648.3,2648.2,0.98987059]
[1729409935074,0.37761,2648.3,2648.1,4.61647059]
[1729409937377,0.37761,2648.3,2648.1,1.40867059]
[1729409940684,0.37762,2648.3,2648.1,1.40867059]
[1729409942375,0.37763,2648.2,2648.1,1.40867059]
[1729409942971,0.37762,2648.3,2648.1,1.40867059]
[1729409946281,0.37763,2648.2,2648.1,1.40867059]
[1729409948773,0.37763,2648.2,2648.1,1.66778147]
[1729409959391,0.37763,2648.2,2648.1,0.67791088]
[1729409960494,0.37763,2648.2,2648.1,1.66778147]
[1729409960689,0.37763,2648.2,2648.1,0.67791088]
[1729409961082,0.37763,2648.2,2648.1,1.66778147]
[1729409961392,0.37763,2648.2,2648.1,0.67791088]
[1729409961692,0.37763,2648.2,2648.1,1.66778147]
[1729409961990,0.37763,2648.2,2648.1,0.67791088]
[1729409962188,0.37763,2648.2,2648.1,1.66778147]
[1729409963090,0.37763,2648.2,2648.1,0.67791088]
[1729409963288,0.37763,2648.2,2648.1,1.66778147]
[1729409969284,0.37763,2648.2,2648.1,3.16858545]
[1729409969590,0.37763,2648.2,2648.1,1.66778147]
[1729409972193,0.37763,2648.2,2648.1,3.16883223]
[1729409972683,1.19422,2648.3,2648.1,1.66778147]
[1729409972986,1.19421,2648.3,2648.2,0.25911088]
[1729409974693,1.19421,2648.3,2648.2,1.24898147]
[1729409974895,1.19421,2648.3,2648.2,0.25911088]
[1729409975294,1.19421,2648.3,2648.2,1.24898147]
[1729409977891,1.19421,2648.3,2648.2,0.25911088]
[1729409978202,1.19421,2648.3,2648.2,1.24898147]
[1729409980689,0.8166,2648.3,2648.2,1.24898147]
[1729409981597,1.19421,2648.3,2648.2,1.24898147]
[1729409983794,0.8166,2648.3,2648.2,1.24898147]
[1729409984596,1.19421,2648.3,2648.2,1.24898147]
[1729409985105,0.4101,2648.3,2648.2,1.24898147]
[1729409985290,3.2078,2648.8,2648.2,5.02498147]
[1729409985494,3.2078,2648.8,2648.4,0.37759]
[1729409985495,0.37756,2648.7,2648.4,0.37759]
[1729409985705,0.37756,2648.7,2648.4,1.36746059]
[1729409985888,0.37756,2648.7,2648.5,0.65831088]
[1729409986091,0.37756,2648.7,2648.5,1.64818147]
[1729409986297,0.37756,2648.7,2648.5,0.65831088]
[1729409986903,0.37756,2648.7,2648.6,0.25911088]
[1729409992902,1.63365,2648.8,2648.6,0.25911088]
[1729409993310,0.37756,2648.7,2648.6,0.25911088]
[1729410016919,4.15276,2648.7,2648.6,0.25911088]
[1729410020023,7.36056,2648.7,2648.6,0.25911088]
[1729410021532,4.15276,2648.7,2648.6,0.25911088]
[1729410029046,1.21056,2648.7,2648.6,0.25911088]
[1729410029544,0.37756,2648.7,2648.6,0.25911088]
[1729410031554,0.80686,2648.7,2648.6,0.25911088]
[1729410036254,7.78986,2648.7,2648.6,0.25911088]
[1729410039065,0.80686,2648.7,2648.6,0.25911088]
[1729410039268,4.58206,2648.7,2648.6,0.25911088]
[1729410040152,7.78986,2648.7,2648.6,0.25911088]
[1729410041959,4.58206,2648.7,2648.6,0.25911088]
[1729410043352,7.78986,2648.7,2648.6,0.25911088]
[1729410044061,4.58206,2648.7,2648.6,0.25911088]
[1729410044665,7.78986,2648.7,2648.6,0.25911088]
[1729410044860,4.58206,2648.7,2648.6,0.25911088]
[1729410045067,7.78986,2648.7,2648.6,0.25911088]
[1729410045759,4.58206,2648.7,2648.6,0.25911088]
[1729410045959,7.78986,2648.7,2648.6,0.25911088]
[1729410047761,4.58206,2648.7,2648.6,0.25911088]
[1729410048662,7.78986,2648.7,2648.6,0.25911088]
[1729410052381,4.58206,2648.7,2648.6,0.25911088]
[1729410052973,7.78986,2648.7,2648.6,0.25911088]
[1729410053166,4.58206,2648.7,2648.6,0.25911088]
[1729410053366,7.78986,2648.7,2648.6,0.25911088]
[1729410056072,4.58206,2648.7,2648.6,0.25911088]
[1729410057371,7.4123,2648.7,2648.2,0.405]
[1729410057672,0.37761,2648.3,2648.2,0.405]
[1729410058662,1.62481,2648.3,2648.2,0.405]
[1729410059573,2.04351,2648.3,2648.2,0.405]
[1729410063075,5.81951,2648.3,2648.2,0.405]
[1729410063278,2.04351,2648.3,2648.2,0.405]
[1729410063581,5.81951,2648.3,2648.2,0.405]
[1729410065178,9.02731,2648.3,2648.2,0.405]
[1729410066478,8.6497,2648.3,2647.8,0.3906]
[1729410066683,0.4089,2648.2,2647.9,0.4151]
[1729410066880,0.37766,2648.0,2647.9,0.4151]
[1729410075487,1.20965,2648.1,2647.9,0.4151]
[1729410075687,0.832,2648.1,2647.9,0.4151]
[1729410075881,3.2078,2648.2,2647.9,0.4151]
[1729410076084,4.0398,2648.2,2647.9,0.79277]
[1729410076279,4.41743,2648.2,2647.9,0.4151]
[1729410076483,4.0398,2648.2,2647.9,0.4151]
[1729410077588,4.41743,2648.2,2647.9,0.4151]
[1729410078781,1.20963,2648.2,2647.9,0.4151]
[1729410083497,0.832,2648.2,2647.9,0.4151]
[1729410083792,1.20963,2648.2,2647.9,0.4151]
[1729410084293,0.832,2648.2,2647.9,0.4151]
[1729410084490,1.20964,2648.2,2647.9,0.4151]
[1729410093297,1.62044,2648.2,2647.9,0.4151]
[1729410102207,0.78844,2648.2,2647.9,0.4151]
[1729410102405,1.62044,2648.2,2647.9,0.4151]
[1729410102603,0.4096,2648.1,2647.9,0.4151]
[1729410104808,0.8197,2648.1,2647.9,0.4151]
[1729410106712,1.19735,2648.1,2647.9,0.4151]
[1729410107111,1.19735,2648.1,2647.9,1.40497059]
[1729410107709,1.19735,2648.1,2647.9,0.4151]
[1729410107914,1.19735,2648.1,2647.9,1.40497059]
[1729410108909,1.19735,2648.1,2647.9,0.4151]
[1729410109312,1.19735,2648.1,2647.9,1.40497059]
[1729410109704,1.19735,2648.1,2647.9,0.4151]
[1729410109905,1.19735,2648.1,2647.9,1.40497059]
[1729410110417,1.19735,2648.1,2647.9,0.4151]
[1729410110612,0.8197,2648.1,2647.9,1.40497059]
[1729410111801,1.19734,2648.1,2647.9,1.40497059]
[1729410114811,1.19734,2648.1,2647.9,0.4151]
[1729410115011,1.19734,2648.1,2647.9,1.40497059]
[1729410115502,1.19734,2648.1,2647.9,0.4151]
[1729410115703,1.19734,2648.1,2647.9,1.40497059]
[1729410118219,0.8197,2648.1,2647.9,1.40497059]
[1729410118417,1.19734,2648.1,2647.9,1.40497059]
[1729410118718,1.19734,2648.1,2647.9,0.4151]
[1729410119017,1.19734,2648.1,2647.9,1.40497059]
[1729410121816,0.8197,2648.1,2647.9,1.40497059]
[1729410122126,0.8197,2648.1,2647.9,0.98987059]
[1729410122127,0.37766,2648.0,2647.9,0.98987059]
[1729410122316,0.37766,2648.0,2647.8,0.98987059]
[1729410122623,0.4002,2647.9,2647.8,0.98987059]
[1729410122822,0.4002,2647.9,2647.8,2.49253381]
[1729410124124,0.4002,2647.9,2647.8,1.50266322]
[1729410124316,0.4002,2647.9,2647.8,2.4946566]
[1729410124718,0.4002,2647.9,2647.8,2.8723466]
[1729410124919,0.4002,2647.9,2647.8,1.50266322]
[1729410125327,0.4002,2647.9,2647.8,2.49464264]
[1729410126023,0.4002,2647.9,2647.8,2.49473928]
[1729410126826,0.4002,2647.9,2647.8,2.49471248]
[1729410129125,0.4002,2647.9,2647.8,0.99197942]
[1729410130227,0.4002,2647.9,2647.8,2.49460718]
[1729410131229,0.77787,2647.9,2647.8,2.49460718]
[1729410131429,0.77787,2647.9,2647.8,0.99197942]
[1729410132131,0.4002,2647.9,2647.7,4.59727942]
[1729410132325,1.16429,2647.8,2647.7,4.59727942]
[1729410132621,1.16429,2647.8,2647.7,6.09976809]
[1729410132822,0.7866,2647.8,2647.7,6.09976809]
[1729410133221,0.7866,2647.8,2647.7,4.59727942]
[1729410133222,1.16429,2647.8,2647.7,4.59727942]
[1729410133620,1.16429,2647.8,2647.7,6.09965231]
[1729410133821,1.16429,2647.8,2647.7,4.59727942]
[1729410134829,0.7866,2647.8,2647.7,1.38947942]
[1729410135138,0.7866,2647.8,2647.7,4.59727942]
[1729410135720,1.16429,2647.8,2647.7,4.59727942]
[1729410136525,0.7866,2647.8,2647.7,1.38947942]
[1729410136829,1.16429,2647.8,2647.7,4.59727942]
[1729410137334,0.3953,2647.8,2647.7,4.59727942]
[1729410138324,0.4002,2647.9,2647.7,4.59727942]
[1729410138532,0.4002,2647.9,2647.7,5.43957942]
[1729410139018,1.20866,2648.0,2647.7,5.43957942]
[1729410139432,1.20866,2648.0,2647.8,0.99197942]
[1729410139729,1.20866,2648.0,2647.7,5.43957942]
[1729410142532,0.37767,2647.9,2647.7,5.43957942]
[1729410142932,1.20867,2648.0,2647.7,5.43957942]
[1729410143334,1.20867,2648.0,2647.8,0.99197942]
[1729410143726,0.4127,2648.1,2647.8,1.36966942]
[1729410144536,0.79034,2648.1,2647.8,1.36966942]
[1729410144737,1.61203,2648.2,2647.8,1.36965942]
[1729410145736,1.61203,2648.2,2647.8,0.99197942]
[1729410146434,0.4044,2648.2,2647.8,0.99197942]
[1729410146632,0.4044,2648.2,2648.0,0.99197942]
[1729410147236,0.4044,2648.2,2648.1,0.3904]
[1729410148340,0.4202,2648.3,2648.1,0.3904]
[1729410148837,0.78409,2648.5,2648.1,0.3904]
[1729410148838,1.20679,2648.5,2648.1,0.3904]
[1729410149037,2.03679,2648.5,2648.1,0.3904]
[1729410149746,1.6592,2648.5,2648.1,0.3904]
[1729410150037,2.0368,2648.5,2648.1,0.3904]
[1729410150233,0.3776,2648.4,2648.1,0.3904]
[1729410152629,0.4158,2648.3,2648.1,0.3904]
[1729410154137,0.79341,2648.3,2648.1,0.3904]
[1729410154336,0.4158,2648.3,2648.1,0.3904]
[1729410155134,0.79341,2648.3,2648.1,0.3904]
[1729410155534,0.37763,2648.2,2648.1,0.3904]
[1729410155736,0.77583,2648.2,2648.1,0.3904]
[1729410156442,0.3982,2648.2,2648.1,0.3904]
[1729410157642,0.77583,2648.2,2648.1,0.3904]
[1729410157842,0.3982,2648.2,2648.1,0.3904]
[1729410164045,0.3982,2648.2,2648.1,0.76804]
[1729410164754,0.3982,2648.2,2648.1,0.3904]
[1729410165450,0.3982,2648.2,2648.1,0.76804]
[1729410165649,0.3982,2648.2,2648.1,0.3904]
[1729410167051,0.3982,2648.2,2648.1,0.76804]
[1729410167350,0.3982,2648.2,2648.1,0.3904]
[1729410168340,0.3982,2648.2,2648.1,0.76804]
[1729410168744,0.3982,2648.2,2648.1,0.3904]
[1729410169755,0.3982,2648.2,2648.1,0.76804]
[1729410170254,0.3982,2648.2,2648.1,0.3904]
[1729410171855,0.3982,2648.2,2648.1,0.76804]
[1729410172942,0.3982,2648.2,2648.1,0.3904]
[1729410175654,0.3982,2648.2,2648.1,0.76804]
[1729410177554,0.3982,2648.2,2648.1,0.3904]
[1729410177751,0.3982,2648.2,2648.1,0.76804]
[1729410178453,0.3982,2648.2,2648.1,0.3904]
[1729410178761,0.3982,2648.2,2648.1,0.76804]
[1729410179958,0.3982,2648.2,2648.1,0.3904]
[1729410181753,0.3982,2648.2,2648.1,0.76804]
[1729410182566,0.3982,2648.2,2648.1,1.76001942]
[1729410182766,0.3982,2648.2,2648.1,0.76804]
[1729410183155,0.3982,2648.2,2648.1,1.76001942]
[1729410188351,0.3982,2648.2,2648.1,4.96781942]
[1729410188952,0.3982,2648.2,2648.1,1.76001942]
[1729410189162,0.3982,2648.2,2648.1,4.96781942]
[1729410191860,0.3982,2648.2,2648.1,4.59017942]
[1729410192764,0.3982,2648.2,2648.1,1.38237942]
[1729410194065,0.3982,2648.2,2648.1,1.76001942]
[1729410202186,0.8239,2648.2,2648.1,1.38237942]
[1729410205283,0.8239,2648.2,2648.1,1.76001942]
[1729410210690,0.8239,2648.2,2648.1,0.76804]
[1729410210882,0.8239,2648.2,2648.1,1.76001942]
[1729410211088,0.8239,2648.2,2648.1,0.76804]
[1729410211283,0.8239,2648.2,2648.1,1.76001942]
[1729410211484,0.8239,2648.2,2648.1,0.76804]
[1729410211683,0.8239,2648.2,2648.1,1.76001942]
[1729410212196,0.8239,2648.2,2648.1,0.76804]
[1729410212579,0.8239,2648.2,2648.1,0.37764]
[1729410212784,0.8239,2648.2,2648.0,1.79062942]
[1729410223294,0.8239,2648.2,2648.1,0.37764]
[1729410226699,0.3982,2648.2,2648.1,0.37764]
[1729410236206,0.3982,2648.2,2648.1,1.36961942]
[1729410236606,0.3982,2648.2,2648.1,0.37764]
[1729410237517,0.3982,2648.2,2648.1,1.36961942]
[1729410237815,0.3982,2648.2,2648.1,0.37764]
[1729410240720,0.3982,2648.2,2648.0,1.79062942]
[1729410245724,0.3982,2648.2,2648.0,0.79865]
[1729410247126,0.3982,2648.2,2648.0,1.79062942]
[1729410247425,0.3982,2648.2,2648.0,0.79865]
[1729410251033,0.3982,2648.2,2648.0,0.421]
[1729410251236,0.3982,2648.2,2648.0,0.79865]
[1729410254142,0.3982,2648.2,2648.0,0.421]
[1729410254339,0.3982,2648.2,2648.0,0.79865]
[1729410254534,0.3982,2648.2,2648.1,0.37764]
[1729410255039,0.3982,2648.2,2648.0,0.421]
[1729410255238,0.3982,2648.2,2648.0,0.79865]
[1729410255546,0.37762,2648.3,2648.0,0.79865]
[1729410255743,0.37761,2648.4,2648.1,1.21394]
[1729410256651,0.3776,2648.5,2648.1,1.21394]
[1729410257038,0.828,2648.7,2648.1,0.8363]
[1729410257257,0.37761,2648.4,2648.1,0.8363]
[1729410258746,0.80561,2648.4,2648.1,0.8363]
[1729410258947,1.21501,2648.4,2648.1,0.8363]
[1729410262654,0.8374,2648.4,2648.1,1.21394]
[1729410263046,0.8374,2648.4,2648.1,0.8363]
[1729410263249,1.21501,2648.4,2648.1,0.8363]
[1729410264150,0.8374,2648.4,2648.1,0.8363]
[1729410264350,1.2181,2648.8,2648.1,4.0441]
[1729410264552,0.37759,2648.5,2648.2,0.99197942]
[1729410264949,0.4121,2648.4,2648.3,0.4286]
[1729410269764,0.7897,2648.4,2648.3,0.4286]
[1729410271766,0.37762,2648.3,2648.1,3.2078]
[1729410272062,0.80402,2648.3,2648.1,4.19977942]
[1729410272258,0.80402,2648.3,2648.1,3.2078]
[1729410273056,0.80402,2648.3,2648.2,0.3935]
[1729410279175,1.20292,2648.3,2648.2,0.3935]
[1729410296876,1.20292,2648.3,2648.0,4.58937942]
[1729410297081,1.20292,2648.3,2648.1,0.80434]
[1729410297377,1.20292,2648.3,2648.1,0.4267]
[1729410299680,1.20292,2648.3,2648.1,0.80434]
[1729410300083,1.20292,2648.3,2648.1,0.4267]
[1729410300389,0.37763,2648.2,2648.1,0.4267]
[1729410300786,0.37767,2648.0,2647.7,0.99197942]
[1729410300977,0.37767,2648.0,2647.8,0.3969]
[1729410300978,0.412,2647.9,2647.8,0.3969]
[1729410305282,0.78967,2647.9,2647.8,0.3969]
[1729410305788,0.412,2647.9,2647.8,0.3969]
[1729410306285,0.78967,2647.9,2647.8,0.3969]
[1729410311885,0.412,2647.9,2647.6,4.19977942]
[1729410312103,0.3777,2647.7,2647.6,3.6015]
[1729410316598,0.4192,2647.8,2647.6,3.6015]
[1729410316792,0.79689,2647.8,2647.6,3.6015]
[1729410316996,0.79689,2647.8,2647.6,4.0002]
[1729410318196,0.412,2647.9,2647.6,4.0002]
[1729410318410,0.404,2648.0,2647.7,0.3777]
[1729410318411,0.37766,2648.0,2647.7,0.3777]
[1729410319612,0.826,2648.1,2647.6,4.0002]
[1729410319796,0.826,2648.1,2647.6,4.37791]
[1729410319797,0.37767,2647.9,2647.6,4.37791]
[1729410322395,0.826,2648.1,2647.6,4.0002]
[1729410322595,0.37767,2648.0,2647.7,0.37769]
[1729410322811,0.826,2648.1,2647.6,4.0002]
[1729410323102,0.37766,2648.0,2647.7,0.37769]
[1729410323307,0.37766,2648.0,2647.6,4.0002]
[1729410323508,0.37766,2648.0,2647.6,4.37791]
[1729410324892,0.37767,2647.9,2647.6,4.0002]
[1729410325502,0.37767,2647.9,2647.6,4.37791]
[1729410329101,0.37769,2647.8,2647.6,4.37791]
[1729410329410,0.4191,2648.0,2647.6,4.37791]
[1729410329706,0.37768,2647.9,2647.6,4.37791]
[1729410329903,0.4191,2648.0,2647.6,4.37791]
[1729410330206,0.37769,2647.8,2647.6,4.37791]
[1729410330605,0.37768,2647.9,2647.7,0.3777]
[1729410330906,0.37768,2647.9,2647.6,4.37791]
[1729410331203,0.37769,2647.8,2647.6,4.37791]
[1729410333008,0.8241,2648.0,2647.6,4.37791]
[1729410333198,0.37768,2647.9,2647.7,0.3777]
[1729410333397,0.37768,2647.9,2647.6,4.3779]
[1729410333606,0.8241,2648.0,2647.6,4.3779]
[1729410333800,0.37769,2647.8,2647.6,4.3779]
[1729410335599,0.37768,2647.9,2647.7,0.3777]
[1729410335795,0.37768,2647.9,2647.8,0.4062]
[1729410340727,1.62147,2648.0,2647.8,0.4062]
[1729410341341,0.37767,2647.9,2647.8,0.4062]
[1729410372536,1.2438,2648.0,2647.7,0.99197942]
[1729410372839,0.37769,2647.8,2647.7,0.99197942]
[1729410387346,0.37769,2647.8,2647.7,2.49930063]
[1729410392255,0.37769,2647.8,2647.7,2.49930442]
[1729410392757,0.37769,2647.8,2647.7,0.99197942]
[1729410394350,0.3777,2647.7,2647.6,3.6139]
[1729410394540,0.3777,2647.7,2647.6,5.12125218]
[1729410395448,0.3777,2647.7,2647.6,6.59928438]
[1729410396249,0.3777,2647.7,2647.6,3.39148438]
[1729410397258,0.3777,2647.7,2647.6,3.39143722]
[1729410399244,0.3777,2647.7,2647.6,3.39143731]
[1729410402059,0.3777,2647.7,2647.6,3.39143312]
[1729410406963,0.3777,2647.7,2647.6,3.39142222]
[1729410407872,0.3777,2647.7,2647.6,1.91339002]
[1729410408065,0.3777,2647.7,2647.6,3.39142222]
[1729410408569,0.3777,2647.7,2647.6,3.39142462]
[1729410409675,0.3777,2647.7,2647.6,1.91339242]
[1729410411570,0.3777,2647.7,2647.6,3.39142462]
[1729410411772,0.3777,2647.7,2647.6,3.39140896]
[1729410412373,0.3777,2647.7,2647.6,1.91337676]
[1729410414774,0.3777,2647.7,2647.6,3.39140896]
[1729410416673,0.3777,2647.7,2647.6,3.39139757]
[1729410418680,0.3777,2647.7,2647.6,0.4061]
[1729410419479,0.37771,2647.6,2647.5,0.9920393]
[1729410419682,0.37773,2647.5,2647.4,0.9920393]
[1729410419986,1.19813,2647.5,2647.4,0.9920393]
[1729410422279,0.8204,2647.5,2647.4,0.9920393]
[1729410422589,0.37774,2647.4,2647.3,1.4182393]
[1729410422889,0.37774,2647.4,2647.3,2.92473772]
[1729410423389,0.37774,2647.4,2647.3,1.4182393]
[1729410427492,0.37774,2647.4,2647.3,0.4262]
[1729410427688,0.37774,2647.4,2647.3,1.4182393]
[1729410428384,0.37774,2647.4,2647.3,0.4262]
[1729410428778,0.37774,2647.4,2647.3,1.4182393]
[1729410429786,0.37774,2647.4,2647.3,0.4262]
[1729410444804,0.78174,2647.4,2647.3,0.4262]
[1729410475228,0.37774,2647.4,2647.3,0.4262]
[1729410487549,0.79004,2647.4,2647.3,0.4262]
[1729410487742,0.37776,2647.3,2647.2,0.9920393]
[1729410487945,0.37776,2647.3,2647.2,1.4084393]
[1729410501552,0.37776,2647.3,2647.2,2.91581904]
[1729410502652,0.37776,2647.3,2647.2,2.91581539]
[1729410505456,0.37776,2647.3,2647.2,1.4084393]
[1729410513168,0.37776,2647.3,2647.2,2.91580316]
[1729410513361,0.37776,2647.3,2647.2,1.4084393]
[1729410514367,0.37776,2647.3,2647.2,2.9158098]
[1729410514972,0.37776,2647.3,2647.2,1.4084393]
[1729410515157,0.37776,2647.3,2647.2,2.91581198]
[1729410515360,0.37776,2647.3,2647.2,1.4084393]
[1729410515771,0.37776,2647.3,2647.2,2.91581263]
[1729410518867,0.37776,2647.3,2647.2,1.4084393]
[1729410523876,0.37777,2647.2,2647.1,0.9920393]
[1729410524178,1.17057,2647.2,2647.1,0.9920393]
[1729410528979,1.17057,2647.2,2647.0,0.9920393]
[1729410528980,0.37779,2647.1,2647.0,0.9920393]
[1729410529178,0.78549,2647.1,2647.0,2.49920309]
[1729410529578,0.78549,2647.1,2647.0,2.49910392]
[1729410532187,0.78549,2647.1,2647.0,0.9920393]
[1729410533383,0.78549,2647.1,2647.0,2.49886173]
[1729410534389,0.78549,2647.1,2647.0,0.9920393]
[1729410537879,0.3778,2647.0,2646.9,1.4018393]
[1729410538080,0.7881,2647.0,2646.9,1.4018393]
[1729410539180,0.7881,2647.0,2646.9,0.4098]
[1729410539376,0.7881,2647.0,2646.9,1.4018393]
[1729410540587,0.7881,2647.0,2646.9,0.4098]
[1729410548704,0.3778,2647.0,2646.9,0.4098]
[1729410553499,0.7855,2647.1,2646.9,0.78761]
[1729410553793,0.3778,2647.0,2646.9,0.4098]
[1729410555396,0.3778,2647.0,2646.9,1.2287]
[1729410555790,0.3778,2647.1,2646.9,1.2287]
[1729410557601,0.3778,2647.1,2646.9,1.60651]
[1729410557799,0.4282,2647.4,2647.1,0.37779]
[1729410558099,0.37777,2647.3,2647.1,0.37779]
[1729410558299,0.80595,2647.4,2647.2,0.4291]
[1729410558599,0.4282,2647.4,2647.2,0.8524]
[1729410558804,0.396,2647.5,2647.2,0.8524]
[1729410558805,0.37776,2647.3,2647.2,0.8524]
[1729410559913,0.396,2647.5,2647.2,0.8524]
[1729410560097,0.37775,2647.4,2647.2,0.8524]
[1729410560599,0.37776,2647.3,2647.2,0.8524]
[1729410560799,0.77373,2647.5,2647.3,0.37775]